fUST/lending_fUST_20250617
["ID","MTS","AMOUNT","RATE_DAILY","PERIOD"]
[366251616,1750164647756,-460.0,0.00024164,6]
[366251618,1750164647767,-373.99991792,0.00024164,6]
[366251620,1750164647777,-761.67,0.00024164,6]
[366251622,1750164647787,-460.0,0.00024164,6]
[366251624,1750164647797,-460.0,0.00024164,6]
[366251626,1750164647807,-460.0,0.00024164,6]
[366251628,1750164647817,-460.0,0.00024164,6]
[366251630,1750164647829,-460.0,0.00024164,6]
[366251632,1750164647839,-460.0,0.00024164,6]
[366251634,1750164647849,-365.55083539,0.00024164,6]
[366251636,1750164647859,-460.0,0.00024164,6]
[366251638,1750164647869,-460.0,0.00024164,6]
[366251640,1750164647879,-460.0,0.00024164,6]
[366251641,1750164647888,-460.0,0.00024164,6]
[366251642,1750164647899,-460.0,0.00024164,6]
[366251643,1750164647909,-1095.1,0.00024164,6]
[366251644,1750164647919,-460.0,0.00024164,6]
[366251645,1750164647928,-460.0,0.00024164,6]
[366251646,1750164647938,-381.83545359,0.00024164,6]
[366251647,1750164647947,-1778.13,0.00024164,6]
[366251648,1750164647956,-1695.6,0.00024164,6]
[366251649,1750164647966,-569.07,0.00024164,6]
[366251650,1750164647976,-460.0,0.00024164,6]
[366251652,1750164647985,-460.0,0.00024164,6]
[366251654,1750164647995,-810.0,0.00024164,6]
[366251656,1750164648005,-460.0,0.00024164,6]
[366251658,1750164648016,-2734.63,0.00024164,6]
[366251660,1750164648026,-4197.19,0.00024164,6]
[366251662,1750164648036,-382.27741444,0.00024164,6]
[366251664,1750164648046,-460.0,0.00024164,6]
[366251666,1750164648057,-460.0,0.00024164,6]
[366251668,1750164648068,-460.0,0.00024164,6]
[366251670,1750164648079,-377.11332674,0.00024164,6]
[366251672,1750164648090,-460.0,0.00024164,6]
[366251675,1750164648100,-460.0,0.00024164,6]
[366251677,1750164648111,-410.0,0.00024164,6]
[366251678,1750164648121,-5649.77,0.00024164,6]
[366251681,1750164648132,-320.46817762,0.00024164,6]
[366251683,1750164648147,-500.0,0.00024173,2]
[366251685,1750164648160,-500.0,0.00024173,2]
[366251687,1750164648170,-500.0,0.00024173,2]
[366251689,1750164648180,-500.0,0.00024173,2]
[366251691,1750164648190,-370.53113246,0.00024173,2]
[366251693,1750164648200,-209.7692414,0.00024173,2]
[366251695,1750164648210,-610.78326385,0.00024173,2]
[366251697,1750164648220,-504.71287621,0.00024173,2]
[366251699,1750164648230,-500.0,0.00024173,2]
[366251701,1750164648240,-502.08897129,0.00024173,2]
[366251703,1750164648250,-500.0,0.00024173,2]
[366251705,1750164648260,-500.0,0.00024173,2]
[366251707,1750164648271,-503.81586906,0.00024173,2]
[366251709,1750164648282,-500.0,0.00024173,2]
[366251711,1750164648292,-500.0,0.00024173,2]
[366251713,1750164648302,-421.66916897,0.00024173,2]
[366251715,1750164648311,-173.19119812,0.00024173,2]
[366251717,1750164648321,-500.0,0.00024173,2]
[366251719,1750164648330,-258.84446699,0.00024173,2]
[366251721,1750164648340,-505.50296835,0.00024173,2]
[366251723,1750164648352,-521.56263175,0.00024173,2]
[366251725,1750164648362,-500.0,0.00024173,2]
[366251727,1750164648373,-500.0,0.00024173,2]
[366251729,1750164648383,-500.0,0.00024173,2]
[366251731,1750164648394,-500.0,0.00024173,2]
[366251733,1750164648404,-258.85955658,0.00024173,2]
[366251735,1750164648414,-500.0,0.00024173,2]
[366251737,1750164648425,-500.0,0.00024173,2]
[366251739,1750164648435,-500.0,0.00024173,2]
[366251741,1750164648446,-500.0,0.00024173,2]
[366251743,1750164648456,-500.0,0.00024173,2]
[366251745,1750164648467,-500.0,0.00024173,2]
[366251747,1750164648477,-500.0,0.00024173,2]
[366251749,1750164648488,-500.0,0.00024173,2]
[366251751,1750164648498,-53882.28199885,0.0002419,2]
[366251762,1750164648607,-510.18,0.00024109,6]
[366251764,1750164648618,-243.15199984,0.00024136,6]
[366251779,1750164648755,-267.02800016,0.00024136,6]
[366251781,1750164648765,-510.18,0.00024164,6]
[366251783,1750164648776,-12005.35121458,0.0002419,2]
[366251785,1750164648788,-97971.45960712,0.0002419,2]
[366251846,1750164649435,-430.0,0.00024109,6]
[366251848,1750164649445,-8694.45359198,0.0002419,2]
[366263296,1750164983257,190.89622591,0.0002191,60]
[366263298,1750165174527,478.664183,0.00013699,2]
[366263299,1750165203408,3343.9245792,0.00019,2]
[366263300,1750165203435,3693.5154208,0.00019,2]
[366263308,1750165314735,156.44673131,6e-07,2]
[366263309,1750165314839,156.44673131,6e-07,2]
[366263310,1750165314940,156.44673131,6e-07,2]
[366263311,1750165315035,156.44673131,6e-07,2]
[366263312,1750165315146,156.44673131,6e-07,2]
[366263313,1750165315331,156.44673131,6e-07,2]
[366263314,1750165315425,156.44673131,6e-07,2]
[366263315,1750165315522,156.44673131,6e-07,2]
[366263316,1750165379806,5000.0,0.000191,2]
[366263317,1750165392348,-349.0,0.00019315,2]
[366263318,1750165395172,5000.0,0.000191,2]
[366263319,1750165410756,5000.0,0.000191,2]
[366263320,1750165427228,54.91072872,0.000191,2]
[366263321,1750165427253,4945.08927128,0.000191,2]
[366263322,1750165435068,197.447642,0.00019747,61]
[366263323,1750165435465,197.447642,0.00019747,120]
[366263324,1750165443834,5000.0,0.000191,2]
[366263325,1750165460459,5000.0,0.000191,2]
[366263326,1750165475732,5000.0,0.000191,2]
[366263327,1750165491624,54.91072872,0.000191,2]
[366263328,1750165491654,4945.08927128,0.000191,2]
[366263329,1750165507645,5000.0,0.000191,2]
[366263330,1750165523206,-57.52014562,0.00019315,2]
[366263331,1750165523229,-1914.1407295,0.00019477,2]
[366263332,1750165523251,-1689.9766376,0.00019532,2]
[366263333,1750165523273,-260.35903934,0.00019614,2]
[366263334,1750165523296,-179.87408814,0.00019677,2]
[366263335,1750165523317,-430.7594747,0.00019715,2]
[366263336,1750165523341,-197.447642,0.00019747,2]
[366263337,1750165523363,-3223.49,0.000199,2]
[366263338,1750165523388,-1200.0,0.00019911,2]
[366263339,1750165523411,-1755.3097605,0.00019912,2]
[366263340,1750165523434,-387.94930916,0.0002,2]
[366263341,1750165523456,-300.0,0.00020186,2]
[366263342,1750165523478,-300.0,0.00020186,2]
[366263343,1750165523501,-300.0,0.00020186,2]
[366263344,1750165523523,-214.29417002,0.00020187,2]
[366263345,1750165523545,-128.87900342,0.00020187,2]
[366263346,1750165523629,5000.0,0.000191,2]
[366263347,1750165579473,4390.36762078,0.000189,2]
[366263348,1750165589902,-299.0,0.00019986,2]
[366263349,1750165616213,156.44673129,6e-07,2]
[366263350,1750165731646,508.09637665,0.000191,2]
[366263351,1750165731671,4491.90362335,0.000191,2]
[366263352,1750165746942,5000.0,0.000191,2]
[366263353,1750165763010,5000.0,0.000191,2]
[366263354,1750165778906,5000.0,0.000191,2]
[366263355,1750165794962,508.09637665,0.000191,2]
[366263356,1750165794988,4491.90362335,0.000191,2]
[366263357,1750165810528,5000.0,0.000191,2]
[366263358,1750165826567,5000.0,0.000191,2]
[366263359,1750165830815,3026.91174719,0.000189,2]
[366263389,1750165832212,-1147.9144,0.000193,7]
[366263390,1750165832223,-330.46994122,0.00019386,2]
[366263391,1750165832234,-196.4918969,0.00019625,2]
[366263392,1750165832244,-6984.1805366,0.00019659,2]
[366263393,1750165832254,-666.0,0.00019755,2]
[366263394,1750165832264,-349.78517958,0.00020187,2]
[366263395,1750165832273,-45.40504739,0.00020392,2]
[366263396,1750165832285,-155.93693614,0.00020392,2]
[366263397,1750165832295,-500.0,0.00020492,2]
[366263398,1750165832305,-300.0,0.0002052,2]
[366263399,1750165832314,-300.0,0.0002052,2]
[366263400,1750165832325,-1363.36873013,0.00020521,2]
[366263401,1750165832334,-300.0,0.00020721,2]
[366263402,1750165832345,-204.32,0.00020722,2]
[366263403,1750165832354,-668.4145567,0.00020722,2]
[366263404,1750165832365,-500.0,0.00020731,2]
[366263405,1750165832376,-164.025,0.00020731,2]
[366263406,1750165832385,-500.0,0.00020731,2]
[366263407,1750165832396,-500.0,0.00020731,2]
[366263408,1750165832406,-593.73457857,0.00020731,2]
[366263409,1750165832416,-639.03763453,0.00020731,2]
[366263410,1750165832425,-500.0,0.00020731,2]
[366263411,1750165832435,-500.0,0.00020731,2]
[366263412,1750165832445,-374.36595627,0.00020731,2]
[366263413,1750165832455,-500.0,0.00020731,2]
[366263414,1750165832464,-500.0,0.00020731,2]
[366263415,1750165832474,-500.0,0.00020731,2]
[366263416,1750165832484,-500.0,0.00020731,2]
[366263417,1750165832494,-500.0,0.00020731,2]
[366263418,1750165832504,-10621.7583691,0.00020732,2]
[366263419,1750165832514,-544.89926965,0.00020823,2]
[366263420,1750165832524,-445.06682096,0.000209,4]
[366263421,1750165832650,-576.7008707,0.00020923,2]
[366263422,1750165832660,-239.757,0.00020923,2]
[366263423,1750165832670,-8653.3481203,0.00021016,2]
[366263424,1750165832680,-445.06682085,0.00021072,4]
[366263425,1750165832690,-241.0512,0.00021098,2]
[366263426,1750165832700,-754.343957,0.0002112,2]
[366263427,1750165832710,-500.0,0.000212,2]
[366263428,1750165832719,-250.51657066,0.000212,2]
[366263429,1750165832729,-500.0,0.000212,2]
[366263430,1750165832739,-267.83558777,0.000212,2]
[366263431,1750165832749,-500.0,0.000212,2]
[366263432,1750165832759,-500.0,0.000212,2]
[366263433,1750165832768,-500.0,0.000212,2]
[366263434,1750165832778,-500.0,0.000212,2]
[366263435,1750165832787,-500.0,0.000212,2]
[366263436,1750165832797,-500.0,0.000212,2]
[366263437,1750165832807,-500.0,0.000212,2]
[366263438,1750165832817,-165.96015711,0.000212,2]
[366263439,1750165832827,-500.0,0.000212,2]
[366263440,1750165832839,-500.0,0.000212,2]
[366263441,1750165832849,-500.0,0.000212,2]
[366263442,1750165832859,-255.4406849,0.000212,2]
[366263443,1750165832868,-445.06682085,0.00021245,4]
[366263444,1750165832879,-445.06682085,0.00021417,5]
[366263445,1750165832889,-544.89926965,0.00021419,2]
[366263446,1750165832899,-500.0,0.00021533,2]
[366263447,1750165832910,-500.0,0.00021533,2]
[366263448,1750165832920,-500.0,0.00021549,2]
[366263449,1750165832929,-500.0,0.00021549,2]
[366263450,1750165832939,-257.77953046,0.0002155,2]
[366263451,1750165832948,-502.73075795,0.0002155,2]
[366263452,1750165832958,-500.0,0.0002155,2]
[366263453,1750165832967,-620.51569073,0.0002155,2]
[366263454,1750165832977,-500.37034773,0.0002155,2]
[366263455,1750165832986,-500.0,0.0002155,2]
[366263456,1750165832996,-500.84234029,0.00021567,2]
[366263457,1750165833006,-483.72245828,0.00021567,2]
[366263458,1750165833015,-500.0,0.00021567,2]
[366263459,1750165833025,-500.0,0.00021567,2]
[366263460,1750165833036,-445.06682085,0.0002159,5]
[366263461,1750165833046,-501.58342673,0.000216,2]
[366263462,1750165833056,-500.0,0.000216,2]
[366263463,1750165833065,-500.0,0.000216,2]
[366263464,1750165833075,-500.0,0.000216,2]
[366263465,1750165833085,-500.0,0.000216,2]
[366263466,1750165833095,-500.0,0.000216,2]
[366263467,1750165833104,-500.0,0.000216,2]
[366263468,1750165833114,-500.0,0.000216,2]
[366263469,1750165833124,-500.0,0.000216,2]
[366263470,1750165833134,-500.0,0.000216,2]
[366263471,1750165833143,-500.0,0.000216,2]
[366263472,1750165833153,-389.79435841,0.000216,2]
[366263473,1750165833163,-500.0,0.000216,2]
[366263474,1750165833173,-500.0,0.0002165,2]
[366263475,1750165833184,-500.0,0.0002165,2]
[366263476,1750165833193,-502.94341378,0.0002165,2]
[366263477,1750165833203,-160.0,0.00021732,2]
[366263478,1750165833213,-845.62440851,0.00021732,2]
[366263479,1750165833222,-160.0,0.00021732,2]
[366263480,1750165833232,-160.0,0.00021732,2]
[366263481,1750165833243,-12540.12310952,0.00021732,2]
[366263482,1750165833252,-160.0,0.00021732,2]
[366263483,1750165833262,-567.80273727,0.00021748,2]
[366263484,1750165833271,-1000.92427263,0.00021748,2]
[366263485,1750165833281,-1000.0,0.00021748,2]
[366263486,1750165833291,-1000.0,0.00021748,2]
[366263487,1750165833301,-1000.0,0.00021748,2]
[366263488,1750165833310,-973.55525657,0.00021748,2]
[366263489,1750165833320,-1090.80487311,0.00021748,2]
[366263490,1750165833330,-1000.0,0.00021748,2]
[366263491,1750165833340,-1000.0,0.00021748,2]
[366263492,1750165833350,-1002.63761826,0.00021748,2]
[366263493,1750165833359,-1000.0,0.00021748,2]
[366263494,1750165833369,-445.06682085,0.00021762,5]
[366263495,1750165833379,-5000.0,0.000218,6]
[366263496,1750165833390,-500.0,0.00021833,2]
[366263497,1750165833399,-500.0,0.00021833,2]
[366263498,1750165833409,-500.0,0.00021833,2]
[366263499,1750165833419,-500.0,0.00021833,2]
[366263500,1750165833428,-503.34048536,0.00021874,2]
[366263501,1750165833438,-445.06682085,0.00021934,6]
[366263502,1750165833447,-544.89926965,0.00022015,2]
[366263503,1750165833457,-1000.0,0.00022081,2]
[366263504,1750165833467,-1000.0,0.00022081,2]
[366263505,1750165833477,-160.0,0.00022098,2]
[366263506,1750165833486,-601.51839862,0.00022098,2]
[366263507,1750165833495,-504.09769393,0.00022098,2]
[366263508,1750165833505,-4045.23963416,0.00022098,2]
[366263509,1750165833515,-3000.0,0.000221,2]
[366263510,1750165833524,-445.06682085,0.00022107,6]
[366263511,1750165833534,-3000.0,0.0002211,2]
[366263512,1750165833543,-1000.0,0.00022115,2]
[366263513,1750165833553,-759.64643263,0.00022115,2]
[366263514,1750165833563,-3000.0,0.0002212,2]
[366263515,1750165833573,-3000.0,0.0002213,2]
[366263516,1750165833583,-3000.0,0.0002214,2]
[366263517,1750165833593,-1000.0,0.00022148,2]
[366263518,1750165833603,-1000.0,0.00022148,2]
[366263519,1750165833613,-1000.0,0.00022148,2]
[366263520,1750165833623,-1000.0,0.00022148,2]
[366263521,1750165833634,-1000.0,0.00022148,2]
[366263522,1750165833645,-350.49930538,0.00022148,2]
[366263523,1750165833655,-1145.63051969,0.00022148,2]
[366263524,1750165833665,-500.0,0.00022148,2]
[366263525,1750165833674,-505.8764289,0.00022148,2]
[366263526,1750165833685,-505.33537395,0.00022148,2]
[366263527,1750165833695,-3000.0,0.0002215,2]
[366263528,1750165833704,-3000.0,0.0002216,2]
[366263529,1750165833715,-3000.0,0.0002217,2]
[366263530,1750165833725,-3000.0,0.0002218,2]
[366263531,1750165833735,-3000.0,0.0002219,2]
[366263532,1750165833745,-166.4972533,0.00022198,2]
[366263533,1750165833756,-5114.114127,0.000222,2]
[366263534,1750165833766,-445.06682085,0.00022279,6]
[366263535,1750165833776,-1014.31995088,0.00022296,2]
[366263536,1750165833786,-1500.0,0.00022296,2]
[366263537,1750165833796,-1500.0,0.00022296,2]
[366263538,1750165833806,-697.15218921,0.00022296,2]
[366263539,1750165833817,-1500.0,0.00022296,2]
[366263540,1750165833828,-1500.0,0.00022296,2]
[366263541,1750165833840,-420.0,0.00022332,2]
[366263542,1750165833849,-856.55,0.00022371,3]
[366263543,1750165833859,-428.27,0.00022371,3]
[366263544,1750165833868,-1000.0,0.00022381,2]
[366263545,1750165833877,-500.0,0.00022381,2]
[366263546,1750165833887,-1010.2110016,0.00022381,2]
[366263547,1750165833897,-380.07404203,0.00022381,2]
[366263548,1750165833906,-445.06682085,0.00022452,7]
[366263549,1750165833916,-420.0,0.00022546,2]
[366263550,1750165833926,-163.45,0.0002256,2]
[366263551,1750165833935,-214.14,0.00022574,3]
[366263552,1750165833945,-642.42,0.00022574,3]
[366263553,1750165833955,-153.0,0.00022575,2]
[366263554,1750165833965,-158.9615139,0.00022575,2]
[366263555,1750165833974,-153.0,0.00022575,2]
[366263556,1750165833983,-177.1110308,0.00022575,2]
[366263557,1750165833992,-574.1078115,0.00022575,2]
[366263558,1750165834002,-158.9615139,0.00022575,2]
[366263559,1750165834012,-177.1110308,0.00022575,2]
[366263560,1750165834022,-574.1078115,0.00022575,2]
[366263561,1750165834032,-153.0,0.00022575,2]
[366263562,1750165834041,-574.1078115,0.00022575,2]
[366263563,1750165834052,-158.9615139,0.00022575,2]
[366263564,1750165834061,-153.0,0.00022575,2]
[366263565,1750165834071,-4045.23963414,0.00022576,2]
[366263566,1750165834080,-544.89926965,0.00022611,2]
[366263567,1750165834090,-445.06682085,0.00022624,7]
[366263568,1750165834100,-1500.0,0.00022629,2]
[366263569,1750165834110,-813.06862883,0.00022629,2]
[366263570,1750165834120,-160.0,0.00022642,2]
[366263571,1750165834129,-14027.9074732,0.00022642,2]
[366263572,1750165834140,-1500.0,0.00022663,2]
[366263573,1750165834150,-500.0,0.00022684,2]
[366263574,1750165834165,-1500.0,0.00022696,2]
[366263575,1750165834174,-1500.0,0.00022696,2]
[366263576,1750165834184,-166.06753623,0.00022696,2]
[366263577,1750165834193,-1500.0,0.00022696,2]
[366263578,1750165834203,-160.0,0.0002275,3]
[366263579,1750165834213,-500.0,0.00022767,2]
[366263580,1750165834222,-500.0,0.00022767,2]
[366263581,1750165834232,-158.9615139,0.00022778,2]
[366263582,1750165834242,-177.1110308,0.00022778,2]
[366263583,1750165834251,-153.0,0.00022778,2]
[366263584,1750165834261,-574.1078115,0.00022778,2]
[366263585,1750165834270,-153.0,0.00022778,2]
[366263586,1750165834378,-445.06682085,0.00022797,7]
[366263587,1750165834391,-699.29945915,0.00022844,2]
[366263588,1750165834400,-2011.74940902,0.00022844,2]
[366263589,1750165834410,-24900.0,0.000229,2]
[366263590,1750165834419,-1008.13161699,0.00022929,2]
[366263591,1750165834429,-445.06682085,0.00022969,8]
[366263592,1750165834439,-207.4,0.00022987,2]
[366263593,1750165834449,-4045.23963414,0.00023054,2]
[366263594,1750165834458,-274.34389,0.00023078,2]
[366263595,1750165834468,-153.0,0.00023078,2]
[366263596,1750165834477,-306.1887716,0.00023078,2]
[366263597,1750165834486,-158.9615139,0.00023078,2]
[366263598,1750165834496,-574.1078115,0.00023078,2]
[366263599,1750165834505,-273.6815149,0.00023078,2]
[366263600,1750165834515,-445.06682085,0.00023141,8]
[366263601,1750165834524,-2000.0,0.00023177,2]
[366263602,1750165834534,-317.8038848,0.00023178,2]
[366263603,1750165834544,-180.0700408,0.00023178,2]
[366263604,1750165834553,-1147.7865822,0.00023178,2]
[366263605,1750165834563,-544.89926965,0.00023207,2]
[366263606,1750165834573,-2000.0,0.00023211,2]
[366263607,1750165834583,-2013.09277418,0.00023244,2]
[366263608,1750165834593,-2011.35442707,0.00023244,2]
[366263609,1750165834603,-517.40778635,0.00023244,2]
[366263610,1750165834612,-2160.0,0.00023248,2]
[366263611,1750165834622,-445.06682085,0.00023314,9]
[366263612,1750165834631,-1000.0,0.00023315,2]
[366263613,1750165834640,-507.33326579,0.00023315,2]
[366263614,1750165834651,-150.0,0.00023332,2]
[366263615,1750165834663,-406.0,0.00023366,2]
[366263616,1750165834674,-500.0,0.00023378,2]
[366263617,1750165834683,-123744.77023002,0.00023379,10]
[366263618,1750165834693,-213.39869953,0.00023379,10]
[366263619,1750165834702,-315.45388124,0.00023379,10]
[366263620,1750165834712,-12540.12310952,0.00023379,10]
[366263621,1750165834721,-316.590887,0.00023397,2]
[366263622,1750165834731,-574.1078115,0.00023397,2]
[366263623,1750165834740,-574.1078115,0.00023397,2]
[366263624,1750165834750,-158.9615139,0.00023397,2]
[366263625,1750165834759,-153.0,0.00023397,2]
[366263626,1750165834768,-158.9615139,0.00023397,2]
[366263627,1750165834777,-153.0,0.00023397,2]
[366263628,1750165834787,-349.7095011,0.00023397,2]
[366263629,1750165834797,-158.9615139,0.00023397,2]
[366263630,1750165834807,-574.1078115,0.00023397,2]
[366263631,1750165834816,-158.9615139,0.00023397,2]
[366263632,1750165834826,-574.1078115,0.00023397,2]
[366263633,1750165834838,-153.0,0.00023397,2]
[366263634,1750165834848,-573.4642503,0.00023397,2]
[366263635,1750165834857,-158.6636564,0.00023397,2]
[366263636,1750165834867,-153.0,0.00023397,2]
[366263637,1750165834877,-153.0,0.00023397,2]
[366263638,1750165834886,-153.0,0.00023397,2]
[366263639,1750165834896,-153.0,0.00023397,2]
[366263640,1750165834905,-153.0,0.00023397,2]
[366263641,1750165834915,-153.8295048,0.00023397,2]
[366263642,1750165834925,-445.06682085,0.00023486,9]
[366263643,1750165834934,-4045.23963414,0.00023531,2]
[366263644,1750165834944,-151.0,0.00023586,6]
[366263645,1750165834954,-326.9,0.00023634,2]
[366263646,1750165834963,-500.0,0.0002365,2]
[366263647,1750165834973,-315.67546331,0.0002365,2]
[366263648,1750165834982,-445.06682085,0.00023659,9]
[366263649,1750165834992,-168.0,0.00023687,2]
[366263650,1750165835001,-1000.0,0.00023725,2]
[366263651,1750165835011,-1713.1,0.00023741,3]
[366263652,1750165835021,-856.54,0.00023741,3]
[366263653,1750165835030,-151.0,0.00023754,6]
[366263654,1750165835040,-800.0,0.000238,10]
[366263655,1750165835050,-500.0,0.000238,10]
[366263656,1750165835059,-800.0,0.000238,10]
[366263657,1750165835069,-500.0,0.000238,10]
[366263658,1750165835079,-800.0,0.000238,10]
[366263659,1750165835088,-800.0,0.000238,10]
[366263660,1750165835098,-800.0,0.000238,10]
[366263661,1750165835108,-800.0,0.000238,10]
[366263662,1750165835117,-800.0,0.000238,10]
[366263663,1750165835127,-800.0,0.000238,10]
[366263664,1750165835137,-800.0,0.000238,10]
[366263665,1750165835147,-800.0,0.000238,10]
[366263666,1750165835157,-500.0,0.000238,10]
[366263667,1750165835167,-800.0,0.000238,10]
[366263668,1750165835177,-500.0,0.000238,10]
[366263669,1750165835187,-800.0,0.000238,10]
[366263670,1750165835196,-500.0,0.000238,10]
[366263671,1750165835206,-1165.14534622,0.000238,10]
[366263672,1750165835215,-500.0,0.000238,10]
[366263673,1750165835225,-500.0,0.000238,10]
[366263674,1750165835234,-500.0,0.000238,10]
[366263675,1750165835244,-967.76495015,0.000238,10]
[366263676,1750165835255,-1000.0,0.000238,10]
[366263677,1750165835264,-1000.0,0.000238,10]
[366263678,1750165835274,-1000.0,0.000238,10]
[366263679,1750165835284,-1000.0,0.000238,10]
[366263680,1750165835294,-1000.0,0.000238,10]
[366263681,1750165835303,-1000.0,0.000238,10]
[366263682,1750165835313,-1000.0,0.000238,10]
[366263683,1750165835322,-1000.0,0.000238,10]
[366263684,1750165835332,-1000.0,0.000238,10]
[366263685,1750165835341,-1000.0,0.000238,10]
[366263686,1750165835351,-1000.0,0.000238,10]
[366263687,1750165835362,-1000.0,0.000238,10]
[366263688,1750165835371,-1000.0,0.000238,10]
[366263689,1750165835381,-1334.39819531,0.000238,10]
[366263690,1750165835391,-544.89926965,0.00023803,2]
[366263691,1750165835400,-160.0,0.00023825,4]
[366263692,1750165835410,-445.06682085,0.00023831,10]
[366263693,1750165835420,-595.824717,0.00023841,3]
[366263694,1750165835430,-1500.0,0.00023863,2]
[366263695,1750165835439,-3026.91174719,0.000239,2]
[366263696,1750165835449,-151.0,0.00023922,6]
[366263697,1750165835459,-500.0,0.00023926,3]
[366263698,1750165835468,-428.28,0.00023944,3]
[366263699,1750165835477,-500.0,0.0002397,2]
[366263700,1750165835486,-500.0,0.0002397,2]
[366263701,1750165835495,-168.0,0.0002398,2]
[366263702,1750165835504,-99310.38173891,0.0002399,2]
[366263703,1750165835515,-769.05,0.00024,2]
[366263704,1750165835524,-3000.0,0.00024,2]
[366263705,1750165835534,-229.94211981,0.00024,10]
[366263706,1750165835543,-151.0,0.00024,7]
[366263707,1750165835553,-445.06682085,0.00024003,10]
[366263708,1750165835562,-4045.23963414,0.00024009,2]
[366263709,1750165835572,-3000.0,0.0002401,2]
[366263710,1750165835581,-160.0,0.00024012,2]
[366263711,1750165835591,-3000.0,0.0002402,2]
[366263712,1750165835600,-3000.0,0.0002403,2]
[366263713,1750165835610,-3000.0,0.0002404,2]
[366263714,1750165835620,-3000.0,0.0002405,2]
[366263715,1750165835630,-3000.0,0.0002406,2]
[366263716,1750165835640,-3000.0,0.0002407,2]
[366263717,1750165835650,-3000.0,0.0002408,2]
[366263718,1750165835659,-1539.123308,0.0002408,5]
[366263719,1750165835668,-835.82910252,0.00024081,2]
[366263720,1750165835678,-160.0,0.00024081,2]
[366263721,1750165835688,-229.94211981,0.00024081,2]
[366263722,1750165835697,-213.39869953,0.00024081,2]
[366263723,1750165835707,-1134.37570123,0.0002409,2]
[366263724,1750165835716,-3000.0,0.0002409,2]
[366263725,1750165835725,-151.0,0.0002409,7]
[366263726,1750165835735,-1777.555896,0.000241,2]
[366263727,1750165836043,-500.0,0.00021549,2]
[366263728,1750165836053,-374.7873359,0.00021549,2]
[366263729,1750165836063,-500.0,0.00021549,2]
[366263730,1750165836073,-500.0,0.00021549,2]
[366263731,1750165836082,-1222.444104,0.000241,2]
[366263732,1750165836092,-1726.52440895,0.000241,2]
[366263735,1750165838040,-375.145178,0.0002073,2]
[366263736,1750165838050,-152.70732847,0.0002073,2]
[366263737,1750165838060,-500.0,0.00021549,2]
[366263738,1750165838070,-500.0,0.00021549,2]
[366263739,1750165838079,-500.0,0.00021549,2]
[366263740,1750165838089,-500.0,0.00021549,2]
[366263741,1750165838098,-500.0,0.00021549,2]
[366263742,1750165838107,-500.0,0.00021549,2]
[366263743,1750165838116,-500.0,0.00021549,2]
[366263744,1750165838126,-343.83890048,0.00021549,2]
[366263745,1750165838142,-156.16109952,0.00021549,2]
[366263746,1750165838152,-500.0,0.00021549,2]
[366263747,1750165838161,-500.0,0.00021549,2]
[366263748,1750165838170,-562.81647753,0.00021549,2]
[366263750,1750165838180,-500.0,0.00021549,2]
[366263752,1750165838189,-500.0,0.00021549,2]
[366263754,1750165838198,-172.97313971,0.00021549,2]
[366263756,1750165838213,-327.02686029,0.00021549,2]
[366263757,1750165838224,-424.62582665,0.0002408,2]